bitfinex-derivatives/quotes_SOLF0:USTF0_20260121
["timestamp","ask_amount","ask_price","bid_price","bid_amount"]
[1769002266154,1.58642349,127.15,127.09,3.33401173]
[1769002266551,1.58642349,127.15,127.11,0.05104034]
[1769002266958,1.58642349,127.13,127.07,3.33401173]
[1769002268061,1.58642349,127.13,127.09,0.05230543]
[1769002268263,7.14515966,127.11,127.07,3.33401173]
[1769002268852,7.0884,127.1,127.07,3.33401173]
[1769002269455,7.0884,127.1,127.07,3.3861739]
[1769002271864,7.0884,127.1,127.04,7.0917]
[1769002271865,7.0884,127.1,127.03,8.67872349]
[1769002272057,1.58642349,127.11,127.02,14.39858208]
[1769002272265,1.58642349,127.11,127.01,15.98500557]
[1769002272969,1.58642349,127.11,127.05,0.05247417]
[1769002273159,0.05475406,127.07,127.05,0.05247417]
[1769002273960,7.0893,127.09,127.05,0.05247417]
[1769002274166,1.58642349,127.11,127.05,0.05247417]
[1769002274364,111.84942349,127.11,127.05,0.05247417]
[1769002275958,7.0897,127.08,127.05,0.05247417]
[1769002276565,1.58642349,127.12,127.05,4.13649737]
[1769002277461,133.8737,127.14,127.05,4.13649737]
[1769002277462,0.05736297,127.1,127.05,5.72292086]
[1769002277666,111.82012349,127.14,127.06,4.0840232]
[1769002277870,1.58642349,127.14,127.06,4.0840232]
[1769002278869,7.0873,127.12,127.09,0.04978618]
[1769002279067,0.05329806,127.11,127.09,0.04978618]
[1769002283974,1.58642349,127.14,127.09,0.04978618]
[1769002284276,1.58642349,127.14,127.07,9.38e-06]
[1769002284277,110.2476,127.13,127.07,9.38e-06]
[1769002284475,111.82302349,127.14,127.07,9.38e-06]
[1769002284974,7.0886,127.1,127.04,7.0916]
[1769002285163,7.0886,127.1,127.09,0.05162369]
[1769002285367,7.0886,127.1,127.04,7.0916]
[1769002285675,7.0886,127.1,127.03,7.0923]
[1769002285974,7.0886,127.1,127.02,1.58642349]
[1769002286176,1.58642349,127.1,127.04,4.0840232]
[1769002286378,0.05177773,127.07,127.05,0.05985052]
[1769002288578,0.05177773,127.07,127.02,11.1769232]
[1769002288877,0.05177773,127.07,127.02,4.0840232]
[1769002289777,0.05177773,127.07,127.03,0.05912843]
[1769002290171,1.58642349,127.08,127.03,0.05912843]
[1769002290371,8.73013321,127.06,127.03,0.05912843]
[1769002290563,8.73013321,127.06,127.0,4.0840232]
[1769002292283,7.0912,127.05,127.02,0.05195722]
[1769002294184,8.6985277,127.04,126.98,4.0840232]
[1769002294686,1.58642349,127.02,126.97,4.0840232]
[1769002295474,0.04955886,127.01,126.97,4.0840232]
[1769002299386,0.50175724,127.01,126.95,4.0840232]
[1769002299786,7.0942,127.0,126.95,4.0840232]
[1769002300284,0.50175724,127.01,126.95,4.0840232]
[1769002300589,7.59525724,127.01,126.95,4.0840232]
[1769002301484,7.0946,126.99,126.93,4.0840232]
[1769002301691,1.58887138,127.0,126.97,0.05617517]
[1769002302089,1.58887138,127.0,126.95,4.0840232]
[1769002302389,1.64893098,127.0,126.95,4.0840232]
[1769002302689,8.74303098,127.0,126.95,4.0840232]
[1769002302880,0.0600596,127.0,126.95,4.0840232]
[1769002303080,110.2897,127.08,126.95,4.0840232]
[1769002303081,2.36919928,127.04,126.95,4.0840232]
[1769002303280,0.7803279,127.04,126.95,4.0840232]
[1769002303477,2.36919928,127.04,126.95,4.0840232]
[1769002303877,7.0928,127.03,126.95,11.1804232]
[1769002304093,7.0928,127.03,126.96,4.0840232]
[1769002304478,7.0928,127.03,126.97,4.0840232]
[1769002305392,2.36919928,127.04,126.97,4.0840232]
[1769002307890,0.7803279,127.04,126.98,6.80732187]
[1769002308188,7.8721279,127.04,126.98,6.80732187]
[1769002308490,7.0918,127.04,126.99,5.21845049]
[1769002309500,1.38684163,127.06,127.01,5.21845049]
[1769002310597,3.12182045,127.08,127.01,5.21845049]
[1769002311892,8.67897138,127.08,127.01,5.21845049]
[1769002312189,7.0901,127.08,127.03,5.21845049]
[1769002312395,0.05455405,127.06,127.03,5.27766977]
[1769002314495,7.0889,127.1,127.03,5.27766977]
[1769002316104,7.0889,127.1,127.04,5.21845049]
[1769002318095,7.089,127.09,127.04,5.21845049]
[1769002319096,8.67787138,127.09,127.04,5.21845049]
[1769002321002,8.67727138,127.11,127.05,5.66472017]
[1769002321203,3.91235763,127.11,127.05,5.66472017]
[1769002322595,0.05445564,127.09,127.07,0.05395225]
[1769002322996,0.05445564,127.09,127.03,12.75702017]
[1769002323302,0.05445564,127.09,127.04,5.66472017]
[1769002324306,0.05445564,127.09,127.04,12.75632017]
[1769002324701,0.05445564,127.09,127.05,0.0576467]
[1769002326409,0.05445564,127.09,127.05,5.72236687]
[1769002328812,0.05445564,127.09,127.05,12.81356687]
[1769002329016,124.3801,127.17,127.06,5.66472017]
[1769002329017,2.81119672,127.13,127.06,5.66472017]
[1769002329903,9.89799672,127.13,127.08,5.66472017]
[1769002335416,7.0879,127.11,127.06,6.18407879]
[1769002335613,10.34165445,127.11,127.06,6.18407879]
[1769002335812,1.58887138,127.1,127.06,6.18407879]
[1769002336011,4.84262583,127.1,127.04,6.18407879]
[1769002336215,11.93102583,127.1,127.04,6.18407879]
[1769002337017,0.05189408,127.08,127.06,0.05285025]
[1769002342718,7.0879,127.11,127.06,6.23692904]
[1769002343722,10.7990728,127.11,127.06,6.23692904]
[1769002345920,12.48429282,127.1,127.06,0.05285025]
[1769002348609,11.01966087,127.09,127.03,6.18407879]
[1769002350024,0.05420571,127.07,127.05,0.05792132]
[1769002363134,11.01966087,127.09,127.05,0.05792132]
[1769002363833,7.0891,127.09,127.05,6.24200011]
[1769002364728,11.52007022,127.09,127.05,0.05792132]
[1769002365335,6.05088976,127.08,127.05,0.05792132]
[1769002365634,1.58732511,127.08,127.05,0.05792132]
[1769002365834,6.08184834,127.08,127.05,0.05792132]
[1769002366026,6.13232323,127.08,127.03,16.56523095]
[1769002366833,13.22212323,127.08,127.03,16.56523095]
[1769002367032,13.22212323,127.08,127.03,6.77538345]
[1769002367239,13.22212323,127.08,127.04,0.05959305]
[1769002368028,7.0902,127.07,127.04,0.05959305]
[1769002371642,4.67296453,127.06,127.01,7.0932]
[1769002372139,4.67296453,127.06,127.01,13.86858345]
[1769002372840,0.05314119,127.05,127.01,13.86858345]
[1769002373237,0.05314119,127.05,127.02,6.77538345]
[1769002375042,8.67692511,127.08,127.03,6.77538345]
[1769002375242,7.0896,127.08,127.03,6.77538345]
[1769002375638,7.089,127.09,127.04,6.77538345]
[1769002375836,6.4258794,127.11,127.04,6.77538345]
[1769002376232,13.5141794,127.11,127.04,13.86658345]
[1769002376544,13.5141794,127.11,127.03,1.58732511]
[1769002376545,7.0883,127.11,127.05,8.36270856]
[1769002377153,11.92565429,127.13,127.07,6.77538345]
[1769002377743,0.05807467,127.11,127.09,0.06013045]
[1769002380332,4.83855429,127.13,127.09,0.06013045]
[1769002380743,7.0856,127.15,127.09,7.19638626]
[1769002381131,309.46798873,127.17,127.09,8.78371137]
[1769002381444,23.64,127.19,127.12,7.13625581]
[1769002381445,1.58732511,127.19,127.12,7.13625581]
[1769002381640,4.99642917,127.2,127.14,7.13625581]
[1769002382142,0.05556436,127.18,127.16,0.05447576]
[1769002383443,5.10269477,127.18,127.12,7.13625581]
[1769002384654,5.10269477,127.18,127.14,0.05169739]
[1769002384944,6.62987907,127.17,127.1,7.13625581]
[1769002385944,5.04255396,127.17,127.1,7.13625581]
[1769002386143,0.05634902,127.15,127.1,7.13625581]
[1769002386644,0.05634902,127.15,127.11,7.19158454]
[1769002388752,5.04255396,127.17,127.11,7.19158454]
[1769002389649,12.12715396,127.17,127.11,7.19158454]
[1769002389850,13.71447907,127.17,127.11,7.19158454]
[1769002390644,0.05726902,127.15,127.11,7.19158454]
[1769002396843,0.05726902,127.15,127.11,0.05532873]
[1769002396844,5.35372438,127.14,127.11,0.05532873]
[1769002398054,12.43992438,127.14,127.11,0.05532873]
[1769002399256,5.39540187,127.13,127.07,7.51130113]
[1769002399953,5.39540187,127.13,127.08,7.51130113]
[1769002400456,0.06033126,127.12,127.08,7.51130113]
[1769002400854,0.06033126,127.12,127.09,0.05593286]
[1769002402961,5.53635905,127.12,127.04,7.51130113]
[1769002403158,1.58732511,127.09,127.04,7.51130113]
[1769002403461,5.47602779,127.1,127.04,7.51130113]
[1769002403853,5.47602779,127.1,127.05,7.51130113]
[1769002404361,0.05040382,127.09,127.05,7.51130113]
[1769002407168,1.58732511,127.12,127.05,7.51130113]
[1769002408448,0.055068,127.1,127.05,7.51130113]
[1769002409063,0.055068,127.1,127.05,14.60250113]
[1769002409264,0.055068,127.1,127.06,7.51130113]
[1769002411064,14.24575441,127.13,127.06,7.51130113]
[1769002412261,14.24575441,127.13,127.06,14.60180113]
[1769002413561,14.24575441,127.13,127.07,7.51130113]
[1769002413759,1.58732511,127.13,127.08,7.51130113]
[1769002414870,1.58732511,127.13,127.08,14.60080113]
[1769002415070,14.40644692,127.14,127.08,14.60080113]
[1769002422982,14.40544229,127.14,127.08,14.60080113]
[1769002424578,14.40544229,127.14,127.09,7.51130113]
[1769002425772,14.40544229,127.14,127.1,0.0547107]
[1769002425971,1.58632048,127.16,127.1,7.58092243]
[1769002426383,7.52525649,127.16,127.1,7.58092243]
[1769002426585,13.02403601,127.16,127.11,7.52621173]
[1769002426786,1.58632048,127.17,127.11,7.52621173]
[1769002427486,1.58632048,127.17,127.13,0.0571021]
[1769002427683,0.05878892,127.15,127.13,0.0571021]
[1769002436201,13.03762084,127.18,127.13,0.0571021]
[1769002440497,0.05009472,127.17,127.13,0.0571021]
[1769002440701,14.86569023,127.17,127.13,0.0571021]
[1769002440999,6.14467503,127.14,127.08,7.37399394]
[1769002441193,6.14467503,127.14,127.09,7.089]
[1769002442206,6.14467503,127.14,127.1,0.05053197]
[1769002444810,6.14467503,127.14,127.1,7.13893197]
[1769002446206,6.14467503,127.14,127.1,0.05053197]
[1769002447107,0.05121626,127.13,127.1,0.05053197]
[1769002449110,0.05121626,127.13,127.1,7.13893197]
[1769002450412,14.9231458,127.16,127.1,14.51292591]
[1769002450709,14.9231458,127.16,127.1,14.46239394]
[1769002451110,13.33682532,127.16,127.1,14.46239394]
[1769002451499,13.33682532,127.16,127.12,0.05307]
[1769002452809,6.25162532,127.16,127.12,0.05307]
[1769002453313,7.87107368,127.18,127.13,14.46049394]
[1769002453503,7.0837,127.19,127.14,7.37399394]
[1769002453817,6.29552712,127.2,127.14,7.37399394]
[1769002454203,6.29552712,127.2,127.15,0.04999218]
[1769002454811,14.97482703,127.22,127.15,7.42398612]
[1769002455013,6.30630655,127.21,127.15,7.42398612]
[1769002455215,6.30630655,127.21,127.15,9.0103066]
[1769002457119,6.30630655,127.21,127.17,7.0845]
[1769002457311,0.05369504,127.19,127.17,7.0845]
[1769002457713,0.05369504,127.19,127.17,7.1340847]
[1769002458010,6.30630655,127.21,127.17,7.1340847]
[1769002459508,6.30630655,127.21,127.17,0.0495847]
[1769002468228,0.05770607,127.2,127.17,0.0495847]
[1769002469929,0.05770607,127.2,127.17,8.17543319]
[1769002470127,6.36556844,127.23,127.17,8.17543319]
[1769002470427,7.95188892,127.23,127.17,8.17543319]
[1769002471127,6.34279285,127.22,127.17,8.17543319]
[1769002471328,6.34279285,127.22,127.17,0.0495847]
[1769002472930,6.29815323,127.21,127.17,0.0495847]
[1769002473428,133.7774,127.25,127.18,8.12584849]
[1769002473429,7.88447371,127.25,127.18,8.12584849]
[1769002473731,309.74123112,127.26,127.2,8.12584849]
[1769002474123,309.74123112,127.26,127.2,8.18168764]
[1769002474324,0.05551494,127.24,127.2,15.26448764]
[1769002475219,309.74123112,127.26,127.2,15.26448764]
[1769002475528,315.97412132,127.26,127.2,15.26448764]
[1769002476526,6.21165545,127.29,127.22,8.12584849]
[1769002477327,6.21165545,127.3,127.24,8.18074459]
[1769002477932,6.21165545,127.3,127.24,9.76706507]
[1769002478230,6.21165545,127.3,127.24,8.18074459]
[1769002481334,1.58632048,127.33,127.24,8.18074459]
[1769002481335,6.1290673,127.32,127.25,8.12584849]
[1769002481933,6.1290673,127.32,127.27,0.0563673]
[1769002482329,7.69541984,127.35,127.27,8.18221579]
[1769002482528,6.10909936,127.35,127.27,8.18221579]
[1769002482829,6.10909936,127.35,127.3,0.05205193]
[1769002483135,6.0892526,127.34,127.3,0.05205193]
[1769002483331,7.67557308,127.34,127.3,0.05205193]
[1769002484941,7.67046694,127.34,127.3,0.05205193]
[1769002485131,6.0892526,127.34,127.3,0.05205193]
[1769002485943,6.0088997,127.36,127.3,7.3102558]
[1769002486636,6.0088997,127.36,127.31,7.25820387]
[1769002487032,0.06015309,127.35,127.31,8.83941821]
[1769002487240,5.99026357,127.38,127.32,14.33420387]
[1769002487634,5.97186706,127.37,127.3,7.25820387]
[1769002487834,5.97186706,127.37,127.3,14.33510387]
[1769002488234,110.0004,127.41,127.33,1.58121434]
[1769002488235,5.97186706,127.39,127.33,1.58121434]
[1769002488433,5.97186706,127.39,127.32,7.31774329]
[1769002488634,5.97186706,127.39,127.32,7.25820387]
[1769002488939,5.97186706,127.39,127.34,0.05633069]
[1769002490442,5.93549052,127.38,127.34,0.05633069]
[1769002491140,5.91773212,127.4,127.34,0.05633069]
[1769002492343,12.98963212,127.4,127.34,0.05633069]
[1769002492545,5.88259623,127.39,127.34,0.05633069]
[1769002493139,5.88259623,127.38,127.34,0.05633069]
[1769002494345,5.86545484,127.36,127.3,7.077]
[1769002494742,5.86545484,127.36,127.29,7.25820387]
[1769002494944,14.50253015,127.39,127.32,14.33420387]
[1769002495142,7.42973015,127.39,127.32,7.25820387]
[1769002495342,5.84851581,127.39,127.32,8.83941821]
[1769002495648,5.84851581,127.39,127.34,0.05610187]
[1769002496044,109.9516,127.47,127.34,0.05610187]
[1769002496045,7.64494685,127.47,127.39,110.0135]
[1769002496344,7.64494685,127.46,127.4,7.0713]
[1769002496540,7.64494685,127.46,127.36,110.039]
[1769002496748,7.64494685,127.46,127.37,1.58121434]
[1769002496947,7.70392668,127.44,127.36,111.62021434]
[1769002497240,9.22616119,127.44,127.38,7.0725]
[1769002497443,9.22616119,127.44,127.36,1.58121434]
[1769002497845,9.22616119,127.44,127.39,0.05305658]
[1769002498945,7.65306483,127.43,127.39,0.05305658]
[1769002499844,7.65306483,127.43,127.36,7.0735]
[1769002499845,7.65306483,127.41,127.36,7.0735]
[1769002500343,9.23427917,127.4,127.32,208.92075571]
[1769002500543,16.30617917,127.4,127.32,208.92075571]
[1769002500846,7.65306483,127.37,127.31,7.0766]
[1769002501046,7.7076363,127.37,127.31,7.0766]
[1769002501446,0.05457147,127.37,127.31,111.66311434]
[1769002501641,9.23427917,127.4,127.32,110.0741]
[1769002501838,9.23427917,127.4,127.33,110.0635]
[1769002502044,1.58121434,127.42,127.33,111.64471434]
[1769002502349,9.23427917,127.42,127.33,111.64471434]
[1769002502746,9.23427917,127.42,127.36,0.05413951]
[1769002503850,16.30507917,127.42,127.36,0.05413951]
[1769002504145,7.65306483,127.41,127.36,0.05413951]
[1769002505051,9.23427917,127.4,127.36,0.05413951]
[1769002507846,9.23427917,127.4,127.26,737.5106]
[1769002507847,7.65306483,127.37,127.32,7.0758]
[1769002508047,7.65306483,127.39,127.3,220.1716]
[1769002508255,9.23427917,127.41,127.31,111.66301434]
[1769002508652,9.23427917,127.39,127.31,111.66301434]
[1769002509055,9.23427917,127.39,127.34,0.05240915]
[1769002511458,7.65306483,127.38,127.33,7.0754]
[1769002511755,7.65306483,127.36,127.29,111.67851434]
[1769002511958,7.65306483,127.36,127.29,1.58121434]
[1769002512857,7.65306483,127.36,127.31,0.05570966]
[1769002513956,0.05320576,127.35,127.31,7.13230966]
[1769002517063,7.65306483,127.36,127.32,7.0761]
[1769002517673,175.0,127.51,127.31,0.05570966]
[1769002517674,3.46736205,127.39,127.33,7.0754]
[1769002518271,10.53976205,127.39,127.35,0.0526808]
[1769002518460,3.46736205,127.38,127.35,0.0526808]
[1769002522280,3.46736205,127.37,127.32,7.0761]
[1769002522973,3.46736205,127.37,127.33,7.0756]
[1769002523373,3.46736205,127.37,127.34,0.05991935]
[1769002523670,0.05694973,127.36,127.34,0.05991935]
[1769002524063,3.46736205,127.37,127.34,0.05991935]
[1769002525471,3.46736205,127.39,127.34,0.05991935]
[1769002526770,3.46736205,127.39,127.35,7.0745]
[1769002526975,12.12027639,127.41,127.35,7.0745]
[1769002527573,10.53906205,127.41,127.37,0.05405003]
[1769002527778,3.46736205,127.41,127.37,0.05405003]
[1769002528377,0.05959898,127.4,127.37,0.05405003]
[1769002528975,0.05959898,127.4,127.37,7.12735003]
[1769002530177,5.04857639,127.44,127.37,0.05405003]
[1769002530379,3.46736205,127.44,127.38,7.0727]
[1769002531490,3.46736205,127.44,127.4,0.05591934]
[1769002531691,0.05383314,127.42,127.4,0.05591934]
[1769002532694,3.46736205,127.44,127.4,0.05591934]
[1769002533694,8.64901434,127.48,127.4,0.05591934]
[1769002534082,8.64901434,127.48,127.39,1.58121434]
[1769002534390,8.64901434,127.48,127.43,0.05893653]
[1769002535383,7.0684,127.46,127.39,7.0718]
[1769002535589,3.46736205,127.45,127.39,7.0718]
[1769002536698,3.46736205,127.45,127.41,0.05653953]
[1769002537900,3.46736205,127.45,127.42,7.0706]
[1769002538486,133.514,127.51,127.43,7.0699]
[1769002538487,7.0667,127.5,127.43,7.0699]
[1769002538886,0.05786228,127.48,127.43,7.0699]
[1769002540196,0.05786228,127.48,127.4,1.58121434]
[1769002540500,3.46736205,127.47,127.4,1.58121434]
[1769002540696,3.46736205,127.47,127.41,7.0711]
[1769002541096,3.46736205,127.46,127.39,7.0718]
[1769002541499,3.46736205,127.46,127.41,0.05714269]
[1769002541700,3.46736205,127.45,127.41,0.05714269]
[1769002543599,3.46736205,127.45,127.4,3.57779512]
[1769002543804,3.46736205,127.45,127.37,111.60461434]
[1769002544804,3.46736205,127.45,127.4,0.05640947]
[1769002545502,3.46736205,127.45,127.4,7.12810947]
[1769002546204,3.54921644,127.44,127.4,7.12810947]
[1769002546603,0.05778194,127.44,127.41,7.0711]
[1769002546803,0.05778194,127.44,127.4,0.05640947]
[1769002547508,0.05778194,127.44,127.4,7.12770947]
[1769002547698,3.54921644,127.44,127.4,0.05640947]
[1769002548999,3.54921644,127.44,127.4,7.12810947]
[1769002549807,3.54921644,127.44,127.4,0.05640947]
[1769002556814,3.4914345,127.43,127.35,111.62250656]
[1769002557316,3.4914345,127.42,127.33,422.89548864]
[1769002557506,3.4914345,127.42,127.33,408.49690656]
[1769002558005,0.05337633,127.39,127.36,0.0586415]
[1769002560115,0.05337633,127.39,127.36,7.1325415]
[1769002561017,3.39464702,127.39,127.36,0.0586415]
[1769002561211,3.39464702,127.39,127.31,1.57790656]
[1769002561516,1.57790656,127.4,127.26,117.9886]
[1769002561517,4.91917725,127.38,127.28,110.1077]
[1769002561713,3.34127069,127.37,127.28,110.1077]
[1769002562016,3.34127069,127.37,127.3,7.0771]
[1769002562618,3.40137626,127.35,127.3,7.0771]
[1769002563922,3.40137626,127.35,127.29,1.57790656]
[1769002564218,3.40137626,127.35,127.31,0.0536439]
[1769002565313,3.40137626,127.35,127.25,296.86]
[1769002565510,3.34127069,127.34,127.25,298.43790656]
[1769002566716,0.05007767,127.31,127.25,298.43790656]
[1769002569217,0.05007767,127.31,127.27,0.05621847]
[1769002570223,3.34127069,127.35,127.27,1.63412503]
[1769002570721,3.34127069,127.35,127.27,1.57790656]
[1769002571416,0.05501419,127.32,127.27,1.57790656]
[1769002572016,3.39628488,127.32,127.27,1.57790656]
[1769002572230,3.39628488,127.32,127.28,0.05214356]
[1769002572419,3.39628488,127.32,127.23,1.57790656]
[1769002572620,3.34127069,127.32,127.23,1.57790656]
[1769002573620,0.05217887,127.29,127.23,1.57790656]
[1769002573822,3.39344956,127.29,127.22,1.57790656]
[1769002574214,3.34127069,127.29,127.22,1.57790656]
[1769002575015,0.05753552,127.27,127.22,1.57790656]
[1769002577712,3.47742187,127.27,127.15,96.17858208]
[1769002578026,3.47742187,127.27,127.21,1.57790656]
[1769002578027,3.41988635,127.27,127.21,1.57790656]
[1769002579125,0.0559788,127.25,127.23,0.05851421]
[1769002581125,3.41988635,127.29,127.23,1.63642077]
[1769002581527,3.41988635,127.29,127.23,1.57790656]
[1769002581920,3.41988635,127.29,127.25,1.57790656]
[1769002582322,0.0508876,127.28,127.25,1.57790656]
[1769002582823,0.0508876,127.28,127.25,1.62906573]
[1769002585432,0.0508876,127.28,127.25,0.05115917]
[1769002586131,0.0508876,127.28,127.23,1.57790656]
[1769002586832,0.0508876,127.28,127.15,96.17858208]
[1769002586833,3.47077395,127.28,127.21,1.57790656]
[1769002587024,3.41988635,127.28,127.21,1.57790656]
[1769002587424,0.06036291,127.26,127.23,0.05718437]
[1769002588725,0.06036291,127.26,127.23,1.63509093]
[1769002589535,3.41988635,127.28,127.23,1.63509093]
[1769002590836,0.05796433,127.27,127.23,1.63509093]
[1769002591131,0.05796433,127.27,127.23,8.71589093]
[1769002591330,0.05796433,127.27,127.23,0.05718437]
[1769002591331,3.47785068,127.27,127.23,0.05718437]
[1769002592022,3.47785068,127.27,127.23,7.13838437]
[1769002592221,3.41988635,127.27,127.23,0.05718437]
[1769002592527,1.57790656,127.32,127.23,1.63509093]
[1769002592929,1.57790656,127.32,127.23,1.57790656]
[1769002593634,0.05081719,127.29,127.23,1.57790656]
[1769002593836,0.05081719,127.29,127.26,0.04972926]
[1769002596745,3.47070354,127.29,127.26,0.04972926]
[1769002597638,3.41988635,127.28,127.22,7.0812]
[1769002597843,3.41988635,127.28,127.2,1.57790656]
[1769002598027,7.079,127.27,127.21,7.0822]
[1769002598233,3.41988635,127.26,127.21,7.0822]
[1769002598734,0.04978545,127.25,127.2,1.57790656]
[1769002598940,0.04978545,127.25,127.22,0.05575473]
[1769002599442,3.4696718,127.25,127.18,1.57790656]
[1769002599740,4.99779291,127.25,127.16,1.57790656]
[1769002599942,3.41988635,127.22,127.16,8.66280656]
[1769002600832,0.05246452,127.2,127.16,8.66280656]
[1769002601336,0.05246452,127.2,127.17,0.0516952]
[1769002601742,3.41988635,127.22,127.17,7.1358952]
[1769002602741,3.41988635,127.22,127.17,0.0516952]
[1769002602943,0.05845739,127.21,127.17,0.0516952]
[1769002604345,3.41988635,127.22,127.17,7.1360952]
[1769002604843,3.41988635,127.22,127.17,0.0516952]
[1769002605437,3.29587458,127.21,127.17,0.0516952]
[1769002606440,3.29587458,127.21,127.15,7.0852]
[1769002606638,3.23938379,127.2,127.13,8.66410656]
[1769002607349,3.23938379,127.19,127.13,7.0862]
[1769002607738,0.06027787,127.18,127.13,7.0862]
[1769002607942,3.29966166,127.18,127.11,1.57790656]
[1769002608249,3.29966166,127.18,127.1,298.81790656]
[1769002608649,3.23938379,127.18,127.1,298.81790656]
[1769002608844,3.23938379,127.18,127.1,1.5853536]
[1769002609044,3.23938379,127.17,127.11,7.0878]
[1769002610045,1.5853536,127.19,127.1,1.5853536]
[1769002610046,3.23938379,127.19,127.12,1.5853536]
[1769002610955,3.23938379,127.19,127.13,7.0867]
[1769002611435,3.23938379,127.18,127.1,1.5853536]
[1769002612036,3.23938379,127.16,127.08,1.5853536]
[1769002612246,3.23938379,127.16,127.09,7.0889]
[1769002612649,3.23938379,127.16,127.1,7.0884]
[1769002612846,3.23938379,127.16,127.1,1.5853536]
[1769002614049,3.23938379,127.16,127.11,7.0878]
[1769002614249,3.23938379,127.18,127.12,1.5853536]
[1769002614951,3.23938379,127.18,127.12,8.6726536]
[1769002615351,3.23938379,127.18,127.12,1.5853536]
[1769002616149,3.23938379,127.18,127.12,8.6724536]
[1769002617136,3.23938379,127.18,127.12,7.0871]
[1769002617953,3.23938379,127.18,127.12,8.6724536]
[1769002619048,3.29141609,127.16,127.08,1.5853536]
[1769002619652,3.29141609,127.14,127.09,7.0888]
[1769002619853,3.29141609,127.14,127.07,1.5853536]
[1769002620051,3.29141609,127.14,127.05,1.5853536]
[1769002620448,3.29141609,127.13,127.08,7.0893]
[1769002620847,3.29141609,127.15,127.07,1.5853536]
[1769002621153,3.29141609,127.15,127.09,7.0888]
[1769002622747,3.29141609,127.15,127.1,7.0882]
[1769002623558,3.29141609,127.17,127.11,8.6731536]
[1769002627456,3.29141609,127.12,127.07,7.0897]
[1769002627651,3.29141609,127.12,127.05,1.5853536]
[1769002627857,3.29141609,127.12,127.04,1.5853536]
[1769002628160,3.29141609,127.12,127.02,110.3275]
[1769002628368,3.29141609,127.12,127.03,1.5853536]
[1769002628557,3.29141609,127.12,127.05,1.5853536]
[1769002628956,3.29141609,127.12,127.05,8.6763536]
[1769002629657,3.29141609,127.12,127.06,7.0906]
[1769002630259,3.29141609,127.12,127.07,8.6753536]
[1769002630467,3.29141609,127.15,127.07,1.5853536]
[1769002630767,3.29141609,127.15,127.09,1.5853536]
[1769002631067,3.29141609,127.15,127.06,110.2949]
[1769002631863,3.29141609,127.15,127.09,7.0888]
[1769002633768,3.29141609,127.15,127.06,110.2949]
[1769002634965,3.29141609,127.15,127.08,7.0894]
[1769002635471,0.05321282,127.13,127.09,7.0889]
[1769002635766,0.05321282,127.13,127.08,110.2815]
[1769002635967,10.50882341,127.18,127.09,110.2733]
[1769002636571,3.42452341,127.18,127.11,7.0877]
[1769002636961,3.42452341,127.18,127.12,7.0873]
[1769002637161,0.05738344,127.16,127.12,7.0873]
[1769002640872,3.42452341,127.18,127.13,7.14073973]
[1769002641475,3.42452341,127.18,127.14,7.0861]
[1769002642077,0.05344203,127.17,127.14,7.0861]
[1769002642978,3.42452341,127.2,127.14,7.0861]
[1769002644578,0.05738271,127.18,127.16,0.06031571]
[1769002646778,0.05738271,127.18,127.11,110.2561]
[1769002647182,0.05738271,127.18,127.12,110.2469]
[1769002648271,0.05738271,127.18,127.14,7.0857]
[1769002649081,0.05738271,127.18,127.15,0.04951321]
[1769002649584,0.05738271,127.18,127.15,7.13501321]
[1769002649786,3.42452341,127.21,127.15,0.04951321]
[1769002650785,3.42452341,127.21,127.17,7.0845]
[1769002651189,0.05597918,127.2,127.18,0.05960069]
[1769002653485,10.50522341,127.24,127.18,0.05960069]
[1769002656392,10.50432341,127.26,127.2,1.58385035]
[1769002656589,3.42452341,127.26,127.2,1.58385035]
[1769002657792,3.42452341,127.26,127.22,0.0528598]
[1769002658091,0.05600969,127.24,127.22,0.0528598]
[1769002658489,3.4805331,127.24,127.17,1.58385035]
[1769002659397,3.4805331,127.24,127.19,8.66725035]
[1769002659697,3.42452341,127.24,127.19,8.66725035]
[1769002660391,7.0801,127.25,127.19,8.66725035]
[1769002660594,3.42452341,127.26,127.19,8.66725035]
[1769002660789,3.42452341,127.26,127.21,0.05067671]
[1769002661990,7.0801,127.25,127.21,0.05067671]
[1769002664194,0.04978733,127.24,127.21,0.05067671]
[1769002665189,0.04978733,127.24,127.19,8.66725035]
[1769002665890,3.30052075,127.24,127.18,1.58385035]
[1769002666192,10.33153342,127.24,127.15,110.2154]
[1769002666393,10.33153342,127.24,127.2,0.05147613]
[1769002667390,0.05119452,127.23,127.2,0.05147613]
[1769002668689,10.38342794,127.23,127.2,0.05147613]
[1769002668892,10.38342794,127.23,127.15,1.58388577]
[1769002669096,10.33223342,127.23,127.15,1.58388577]
[1769002669808,3.25073342,127.23,127.15,1.58388577]
[1769002670093,3.25073342,127.23,127.14,110.2276]
[1769002670094,3.25073342,127.23,127.17,1.58388577]
[1769002670292,3.25073342,127.23,127.18,0.05619328]
[1769002670697,3.25073342,127.23,127.18,7.14019328]
[1769002670995,3.25073342,127.25,127.18,0.05619328]